bitfinex/quotes_BTCUSD_20250526
["timestamp","ask_amount","ask_price","bid_price","bid_amount"]
[1748278630498,20.42323624,109380.0,109370.0,3.25481524]
[1748278630699,20.383934,109380.0,109370.0,3.55481524]
[1748278630867,20.3758383,109380.0,109370.0,3.55481524]
[1748278631069,20.36779795,109380.0,109370.0,3.55481524]
[1748278631483,20.35981256,109380.0,109370.0,3.55481524]
[1748278632129,20.35981256,109380.0,109370.0,3.53313888]
[1748278632625,20.35981256,109380.0,109370.0,3.55481524]
[1748278632824,19.64396782,109380.0,109370.0,3.53313888]
[1748278633030,19.64396782,109380.0,109370.0,3.52575075]
[1748278633201,19.64396782,109380.0,109370.0,3.50407439]
[1748278634868,19.64396782,109380.0,109370.0,2.27580097]
[1748278635064,19.64396782,109380.0,109370.0,2.53754084]
[1748278635268,19.64396782,109380.0,109370.0,2.5592172]
[1748278635599,19.64396782,109380.0,109370.0,2.01263742]
[1748278636168,19.64396782,109380.0,109370.0,1.99096106]
[1748278636985,19.59046782,109380.0,109370.0,1.68388106]
[1748278637197,19.59046782,109380.0,109370.0,2.01837306]
[1748278637400,19.59046782,109380.0,109370.0,1.71129306]
[1748278637610,19.59046782,109380.0,109370.0,2.01837306]
[1748278637838,19.59046782,109380.0,109370.0,1.71129306]
[1748278638077,19.59046782,109380.0,109370.0,2.01837306]
[1748278639580,19.59046782,109380.0,109370.0,1.71129306]
[1748278639763,19.59046782,109380.0,109370.0,2.01837306]
[1748278641550,19.59046782,109380.0,109370.0,1.87225306]
[1748278641753,19.59046782,109380.0,109370.0,2.01837306]
[1748278643155,19.55120691,109380.0,109370.0,2.01837306]
[1748278643526,19.54390256,109380.0,109370.0,2.01837306]
[1748278643922,19.50464165,109380.0,109370.0,2.01837306]
[1748278644120,19.50464165,109380.0,109370.0,2.01737306]
[1748278644339,19.4973373,109380.0,109370.0,2.01737306]
[1748278644638,19.46538074,109380.0,109370.0,2.01737306]
[1748278644842,19.45807639,109380.0,109370.0,2.01737306]
[1748278645043,19.42611983,109380.0,109370.0,2.01737306]
[1748278645257,19.41881548,109380.0,109370.0,2.01737306]
[1748278645653,19.41151113,109380.0,109370.0,2.01737306]
[1748278645851,19.33389457,109380.0,109370.0,2.01737306]
[1748278646058,19.2352898,109380.0,109370.0,2.04640978]
[1748278646408,19.05982666,109380.0,109370.0,2.04640978]
[1748278646549,18.96852666,109380.0,109370.0,2.04640978]
[1748278646750,18.96122189,109380.0,109370.0,2.04640978]
[1748278646955,18.86992189,109380.0,109370.0,2.04640978]
[1748278647152,18.83065875,109380.0,109370.0,2.04640978]
[1748278647354,18.73935875,109380.0,109370.0,2.04640978]
[1748278647580,18.54882398,109380.0,109370.0,2.04640978]
[1748278647804,18.51686561,109380.0,109370.0,2.04640978]
[1748278647981,18.41826084,109380.0,109370.0,2.04640978]
[1748278648175,18.41826084,109380.0,109370.0,2.01737306]
[1748278648388,18.2876977,109380.0,109370.0,2.01737306]
[1748278648590,18.1963977,109380.0,109370.0,2.01737306]
[1748278648767,18.18909293,109380.0,109370.0,2.01737306]
[1748278648971,18.08079293,109380.0,109370.0,2.01737306]
[1748278649178,18.07348816,109380.0,109370.0,2.01737306]
[1748278649380,17.98218816,109380.0,109370.0,2.04640978]
[1748278649584,17.97488339,109380.0,109370.0,2.04640978]
[1748278649825,17.94488339,109380.0,109370.0,1.38138893]
[1748278650039,17.94488339,109380.0,109370.0,1.96674047]
[1748278650266,17.76385341,109380.0,109370.0,2.16062047]
[1748278650468,17.71904341,109380.0,109370.0,2.27018047]
[1748278650674,17.62774341,109380.0,109370.0,2.24189047]
[1748278650878,17.53644341,109380.0,109370.0,1.22863375]
[1748278651036,17.4907886,109380.0,109370.0,1.37475375]
[1748278651245,17.44413379,109380.0,109370.0,1.70575375]
[1748278651437,17.39847898,109380.0,109370.0,1.70475375]
[1748278651827,17.35282417,109380.0,109370.0,1.22363375]
[1748278652046,17.30716936,109380.0,109370.0,1.3792946]
[1748278652292,17.30716936,109380.0,109370.0,1.7192946]
[1748278652526,17.26151455,109380.0,109370.0,1.7232946]
[1748278652707,17.21585974,109380.0,109370.0,1.7232946]
[1748278652935,17.16920493,109380.0,109370.0,1.7152946]
[1748278653261,17.07960013,109380.0,109370.0,1.7222946]
[1748278653701,17.03394532,109380.0,109370.0,1.7222946]
[1748278653902,16.98829051,109380.0,109370.0,1.7222946]
[1748278654308,16.9426357,109380.0,109370.0,1.7222946]
[1748278654516,16.89698089,109380.0,109370.0,1.7222946]
[1748278655023,16.85132608,109380.0,109370.0,1.7222946]
[1748278655179,16.80567127,109380.0,109370.0,1.7222946]
[1748278655403,16.76001646,109380.0,109370.0,1.7222946]
[1748278655953,16.70587165,109380.0,109370.0,1.7222946]
[1748278656290,16.66021684,109380.0,109370.0,1.7222946]
[1748278656497,16.61456203,109380.0,109370.0,1.7222946]
[1748278656909,16.56889109,109380.0,109370.0,1.7222946]
[1748278657134,16.52322015,109380.0,109370.0,1.7222946]
[1748278657346,16.47754921,109380.0,109370.0,1.7222946]
[1748278657797,16.39481827,109380.0,109370.0,1.7222946]
[1748278658026,16.34914733,109380.0,109370.0,1.7222946]
[1748278658470,16.30347639,109380.0,109370.0,1.7222946]
[1748278658679,16.25780545,109380.0,109370.0,1.7222946]
[1748278658889,16.21213451,109380.0,109370.0,1.7222946]
[1748278659026,16.21213451,109380.0,109370.0,1.5761746]
[1748278659323,16.21213451,109380.0,109370.0,1.7222946]
[1748278659324,16.16646357,109380.0,109370.0,1.7222946]
[1748278659528,16.12079263,109380.0,109370.0,1.7222946]
[1748278659759,16.07512169,109380.0,109370.0,1.7222946]
[1748278660180,16.02945075,109380.0,109370.0,1.7222946]
[1748278660509,15.98377981,109380.0,109370.0,1.7222946]
[1748278660730,15.93810887,109380.0,109370.0,1.7222946]
[1748278661168,15.89243793,109380.0,109370.0,1.7222946]
[1748278661391,15.84676699,109380.0,109370.0,1.7222946]
[1748278661669,15.80109605,109380.0,109370.0,1.7222946]
[1748278661872,15.80109605,109380.0,109370.0,1.7771446]
[1748278662088,15.75542511,109380.0,109370.0,1.7771446]
[1748278662318,15.70975417,109380.0,109370.0,1.7771446]
[1748278662541,15.66408323,109380.0,109370.0,1.7771446]
[1748278662933,15.61841229,109380.0,109370.0,1.7771446]
[1748278663155,15.57274189,109380.0,109370.0,1.7771446]
[1748278663359,15.56396476,109380.0,109370.0,1.7771446]
[1748278663539,15.51829436,109380.0,109370.0,1.7771446]
[1748278663980,15.47262396,109380.0,109370.0,1.7771446]
[1748278664246,15.42695356,109380.0,109370.0,1.7771446]
[1748278664646,15.38128316,109380.0,109370.0,1.7771446]
[1748278664848,15.33561276,109380.0,109370.0,1.7771446]
[1748278665074,15.33561276,109380.0,109370.0,1.06099375]
[1748278665290,15.36303865,109380.0,109370.0,0.70898847]
[1748278665548,15.35389654,109380.0,109370.0,1.21343409]
[1748278665768,15.34475461,109380.0,109370.0,1.18602209]
[1748278665976,15.37218082,109380.0,109370.0,1.18602209]
[1748278666187,15.38132309,109380.0,109370.0,1.17502209]
[1748278666390,15.37218082,109380.0,109370.0,1.17502209]
[1748278666588,15.38132309,109380.0,109370.0,1.17802209]
[1748278666831,15.38132309,109380.0,109370.0,1.193932]
[1748278667224,15.34475461,109380.0,109370.0,1.193932]
[1748278667653,15.35389663,109380.0,109370.0,1.193932]
[1748278667881,15.35389663,109380.0,109370.0,1.190932]
[1748278668087,15.35389663,109380.0,109370.0,1.185932]
[1748278668313,15.36303873,109380.0,109370.0,1.040772]
[1748278668571,15.35389663,109380.0,109370.0,1.190932]
[1748278669607,15.34475461,109380.0,109370.0,1.190932]
[1748278671455,15.35389671,109380.0,109370.0,1.044772]
[1748278671657,15.34475461,109380.0,109370.0,1.190932]
[1748278672453,15.35389671,109380.0,109370.0,1.190932]
[1748278672655,15.35389663,109380.0,109370.0,1.190932]
[1748278673251,15.91823555,109380.0,109370.0,1.17719344]
[1748278673770,15.38132343,109380.0,109370.0,1.17719344]
[1748278674471,15.38132343,109380.0,109370.0,1.16805076]
[1748278674651,15.38132351,109380.0,109370.0,1.16805076]
[1748278675256,16.08280071,109380.0,109370.0,0.29140991]
[1748278675476,16.08280071,109380.0,109370.0,0.43756991]
[1748278676478,16.08280071,109380.0,109370.0,0.40636991]
[1748278676687,16.08280071,109380.0,109370.0,0.2493]
[1748278677016,16.22896071,109380.0,109370.0,0.216]
[1748278677397,16.22896071,109380.0,109370.0,0.005]
[1748278677744,0.1920086,109370.0,109360.0,0.01090991]
[1748278677952,0.80106307,109370.0,109360.0,0.38217347]
[1748278678142,0.80006246,109370.0,109360.0,0.24661547]
[1748278678344,0.25502616,109360.0,109350.0,0.3739135]
[1748278678554,0.25502616,109360.0,109350.0,0.74805406]
[1748278678757,0.25002616,109360.0,109350.0,1.08805406]
[1748278678961,0.25002616,109360.0,109350.0,0.94189406]
[1748278679172,0.25002616,109360.0,109350.0,1.08809406]
[1748278679588,0.25002616,109360.0,109350.0,1.09209406]
[1748278679788,0.24588222,109360.0,109350.0,1.09209406]
[1748278680047,0.25502616,109360.0,109350.0,1.274993]
[1748278680258,0.26417002,109360.0,109350.0,1.28413786]
[1748278680467,0.27331413,109360.0,109350.0,1.28413786]
[1748278681114,0.26417027,109360.0,109350.0,1.09209406]
[1748278681333,0.26417027,109360.0,109350.0,1.09309406]
[1748278681543,0.26417027,109360.0,109350.0,1.275993]
[1748278681962,0.26417027,109360.0,109350.0,0.94689406]
[1748278682178,0.26417027,109360.0,109350.0,1.07519906]
[1748278683247,0.26417027,109360.0,109350.0,0.92899906]
[1748278683471,0.26417027,109360.0,109350.0,1.06428881]
[1748278684081,0.26417027,109360.0,109350.0,1.25133269]
[1748278684280,0.26417027,109360.0,109350.0,1.26047755]
[1748278684480,0.27217027,109360.0,109350.0,1.06028881]
[1748278685418,0.27217027,109360.0,109350.0,1.24318775]
[1748278685596,0.27217027,109360.0,109350.0,1.06028881]
[1748278687130,0.81904781,109360.0,109350.0,0.79354881]
[1748278687360,0.81904781,109360.0,109350.0,1.16900981]
[1748278687691,0.27217027,109360.0,109350.0,1.16900981]
[1748278688220,0.27217027,109360.0,109350.0,1.02280981]
[1748278688403,0.81904781,109360.0,109350.0,1.07946425]
[1748278688812,0.81904781,109360.0,109350.0,0.84952652]
[1748278689349,0.81904781,109360.0,109350.0,0.70332652]
[1748278689797,0.96524781,109360.0,109350.0,0.70332652]
[1748278690721,1.51212535,109360.0,109350.0,0.33212652]
[1748278690943,0.96524781,109360.0,109350.0,0.33212652]
[1748278691145,1.05479337,109360.0,109350.0,0.67212652]
[1748278691568,1.05479337,109360.0,109350.0,0.68064934]
[1748278691702,1.04679337,109360.0,109350.0,0.67964934]
[1748278691904,1.68619242,109360.0,109350.0,0.67964934]
[1748278692104,1.69119242,109360.0,109350.0,0.30634934]
[1748278692528,1.69119242,109360.0,109350.0,0.29782652]
[1748278694025,1.68419242,109360.0,109350.0,0.29782652]
[1748278694150,1.69219242,109360.0,109350.0,0.29982652]
[1748278695918,1.69219242,109360.0,109350.0,0.27839839]
[1748278696125,0.90959337,109360.0,109350.0,0.27839839]
[1748278696537,1.05583337,109360.0,109350.0,0.27839839]
[1748278698470,0.27317027,109360.0,109350.0,0.27839839]
[1748278698678,0.28231387,109360.0,109350.0,1.08204627]
[1748278698872,0.41941018,109360.0,109350.0,0.87800339]
[1748278699074,0.41941018,109360.0,109350.0,0.82602339]
[1748278699517,0.41541018,109360.0,109350.0,0.82502339]
[1748278699967,0.41141018,109360.0,109350.0,0.82402339]
[1748278700375,0.41441018,109360.0,109350.0,0.71874639]
[1748278700582,0.41441018,109360.0,109350.0,0.61739839]
[1748278701043,0.41941018,109360.0,109350.0,0.61739839]
[1748278701421,0.41941018,109360.0,109350.0,0.80482439]
[1748278701830,0.41941018,109360.0,109350.0,0.72520939]
[1748278702199,0.41941018,109360.0,109350.0,0.61739839]
[1748278702427,0.41941018,109360.0,109350.0,0.79587239]
[1748278703213,0.27317018,109360.0,109350.0,0.61739839]
[1748278703803,0.89745394,109360.0,109350.0,0.61739839]
[1748278704360,0.89645394,109360.0,109350.0,0.61739839]
[1748278706967,0.9859995,109360.0,109350.0,0.27739839]
[1748278707594,0.9859995,109360.0,109350.0,0.28593897]
[1748278711398,0.43912196,109360.0,109350.0,0.28593897]
[1748278711598,0.9859995,109360.0,109350.0,0.28593897]
[1748278711973,0.9859995,109360.0,109350.0,0.10778473]
[1748278713446,1.53287704,109360.0,109350.0,0.10778473]
[1748278713788,0.9859995,109360.0,109350.0,0.10778473]
[1748278714795,0.90859328,109360.0,109350.0,0.10778473]
[1748278715193,0.99859328,109360.0,109350.0,0.10778473]
[1748278715599,0.99859328,109360.0,109350.0,0.11632904]
[1748278718251,1.54547082,109360.0,109350.0,0.11632904]
[1748278719071,1.85195082,109360.0,109350.0,0.11632904]
[1748278719311,0.19207885,109330.0,109320.0,0.53117415]
[1748278719456,0.19207885,109330.0,109320.0,0.54820015]
[1748278720534,0.19207885,109330.0,109320.0,0.54869789]
[1748278720968,0.20122521,109330.0,109320.0,1.27852457]
[1748278721175,0.20122521,109330.0,109320.0,1.44309914]
[1748278721381,0.19207885,109330.0,109320.0,1.21229919]
[1748278721547,0.19207885,109330.0,109320.0,1.39524833]
[1748278721751,0.19207885,109330.0,109320.0,1.29524833]
[1748278722123,0.1829324,109330.0,109320.0,1.29524833]
[1748278722328,0.1829324,109330.0,109320.0,0.88890504]
[1748278722669,0.1829324,109330.0,109320.0,1.08100146]
[1748278722869,0.1829324,109330.0,109320.0,1.07185418]
[1748278723076,0.19207826,109330.0,109320.0,1.08100163]
[1748278723233,0.21037124,109330.0,109320.0,1.09014891]
[1748278723438,0.20122538,109330.0,109320.0,1.09014891]
[1748278724358,0.19207902,109330.0,109320.0,0.87412409]
[1748278724555,0.19207902,109330.0,109320.0,1.42100163]
[1748278725130,0.1829324,109330.0,109320.0,1.42100163]
[1748278725543,0.1829324,109330.0,109320.0,0.42917594]
[1748278725753,0.1829324,109330.0,109320.0,0.49687594]
[1748278725962,0.1829324,109330.0,109320.0,0.36767594]
[1748278726161,0.2464324,109330.0,109320.0,0.36767594]
[1748278727346,0.2161324,109330.0,109320.0,0.36767594]
[1748278728752,0.1829324,109330.0,109320.0,0.36767594]
[1748278730400,0.1829324,109330.0,109320.0,0.91455348]
[1748278731850,0.1829324,109330.0,109320.0,0.92310342]
[1748278733733,0.20122513,109330.0,109320.0,1.25709812]
[1748278733941,0.21037149,109330.0,109320.0,1.37749285]
[1748278734142,0.21037149,109330.0,109320.0,1.38663997]
[1748278734274,0.02743892,109330.0,109320.0,1.39578684]
[1748278734482,0.00914561,109340.0,109330.0,0.4013]
[1748278734688,0.21263822,109340.0,109330.0,2.03585448]
[1748278734888,0.20120698,109340.0,109330.0,1.69585448]
[1748278735138,0.20120698,109340.0,109330.0,1.63185948]
[1748278735416,0.19206137,109340.0,109330.0,1.63185948]
[1748278735625,0.19606137,109340.0,109330.0,1.63185948]
[1748278736593,0.19606137,109340.0,109330.0,1.62271312]
[1748278736739,0.19606137,109340.0,109330.0,1.63185965]
[1748278736940,0.19606137,109340.0,109330.0,1.97185965]
[1748278737706,0.19606137,109340.0,109330.0,1.9810061]
[1748278737842,0.19606137,109340.0,109330.0,1.08662318]
[1748278738064,0.28961322,109340.0,109330.0,0.34]
[1748278738280,0.19207885,109330.0,109320.0,0.04222248]
[1748278738486,0.25687885,109330.0,109320.0,0.36767594]
[1748278738683,0.34640036,109330.0,109320.0,0.36767594]
[1748278738892,0.34640036,109330.0,109320.0,0.37623539]
[1748278741864,0.34640036,109330.0,109320.0,0.37623537]
[1748278746290,0.34640036,109330.0,109320.0,0.34905717]
[1748278746864,0.34640036,109330.0,109320.0,0.37564863]
[1748278747678,0.25687885,109330.0,109320.0,0.37564863]
[1748278749954,0.25687885,109330.0,109320.0,0.03564863]
[1748278752463,0.25687885,109330.0,109320.0,0.58252617]
[1748278752859,0.19207885,109330.0,109320.0,0.61412617]
[1748278753202,0.33835885,109330.0,109320.0,0.64452617]
[1748278753405,0.19207885,109330.0,109320.0,0.64452617]
[1748278754027,0.19207885,109330.0,109320.0,0.58252617]
[1748278754640,0.19207885,109330.0,109320.0,0.5934825]
[1748278755044,0.19207885,109330.0,109320.0,0.56689104]
[1748278755805,0.19207885,109330.0,109320.0,0.62999104]
[1748278756422,0.19207885,109330.0,109320.0,0.96999104]
[1748278756834,0.19207885,109330.0,109320.0,1.53220504]
[1748278757709,0.21037183,109330.0,109320.0,1.87058146]
[1748278757918,0.19207902,109330.0,109320.0,1.67848504]
[1748278758121,0.19207902,109330.0,109320.0,1.66992561]
[1748278758301,0.19207902,109330.0,109320.0,1.67351582]
[1748278759913,0.19207902,109330.0,109320.0,1.68206977]
[1748278761112,0.19207902,109330.0,109320.0,1.11985577]
[1748278761755,0.19207902,109330.0,109320.0,1.93917777]
[1748278762224,0.19207902,109330.0,109320.0,1.95012688]
[1748278763297,0.19207902,109330.0,109320.0,1.70792288]
[1748278763506,0.22467902,109330.0,109320.0,0.58142488]
[1748278763944,0.22467902,109330.0,109320.0,0.56687834]
[1748278764151,0.25717902,109330.0,109320.0,0.56687834]
[1748278766627,0.25717902,109330.0,109320.0,0.55592923]
[1748278766978,0.29279965,109330.0,109320.0,0.55592923]
[1748278768159,0.29279965,109330.0,109320.0,0.56687834]
[1748278769004,0.43907965,109330.0,109320.0,0.56687834]
[1748278769942,0.29279965,109330.0,109320.0,0.56687834]
[1748278770352,0.29279965,109330.0,109320.0,0.63157834]
[1748278770353,0.19207902,109330.0,109320.0,0.63157834]
[1748278771309,0.19207902,109330.0,109320.0,1.15452748]
[1748278771511,0.19207902,109330.0,109320.0,2.23632048]
[1748278771726,0.20122538,109330.0,109320.0,2.23632048]
[1748278771929,0.20122538,109330.0,109320.0,2.24546793]
[1748278772830,0.20122538,109330.0,109320.0,2.24906536]
[1748278773784,0.20122538,109330.0,109320.0,2.25821264]
[1748278774198,0.20122538,109330.0,109320.0,2.24906536]
[1748278774402,0.19207902,109330.0,109320.0,2.24906536]
[1748278776653,0.19207902,109330.0,109320.0,2.25821264]
[1748278777091,0.19207902,109330.0,109320.0,2.15457036]
[1748278777316,0.19207902,109330.0,109320.0,1.95486573]
[1748278777538,0.19207902,109330.0,109320.0,1.74486573]
[1748278777751,0.19207902,109330.0,109320.0,1.73631178]
[1748278778189,0.19207902,109330.0,109320.0,1.74545906]
[1748278779784,0.19207902,109330.0,109320.0,1.76375329]
[1748278779983,0.19207902,109330.0,109320.0,1.75460626]
[1748278780369,15.28341837,109340.0,109330.0,0.1829324]
[1748278780567,15.28341837,109340.0,109330.0,1.61638547]
[1748278780568,15.48462468,109340.0,109330.0,1.61638547]
[1748278780764,15.47547982,109340.0,109330.0,0.99427354]
[1748278780986,15.47547982,109340.0,109330.0,1.17004756]
[1748278781413,15.47547982,109340.0,109330.0,1.18100162]
[1748278781828,15.47747982,109340.0,109330.0,1.18100162]
[1748278782035,15.47947982,109340.0,109330.0,1.18100162]
[1748278782550,15.47947982,109340.0,109330.0,1.14955962]
[1748278782753,15.47947982,109340.0,109330.0,1.13600715]
[1748278783198,15.47033421,109340.0,109330.0,1.13600715]
[1748278785366,15.47033421,109340.0,109330.0,1.1451536]
[1748278785568,15.47033421,109340.0,109330.0,1.13600715]
[1748278787105,14.75807901,109340.0,109330.0,2.52645644]
[1748278787317,14.75047901,109340.0,109330.0,2.55389044]
[1748278787524,14.75047901,109340.0,109330.0,2.60874044]
[1748278787734,14.69533721,109340.0,109330.0,2.60874044]
[1748278787949,14.64963541,109340.0,109330.0,2.60874044]
[1748278788161,14.64763541,109340.0,109330.0,2.61233292]
[1748278788371,14.60193361,109340.0,109330.0,2.61333292]
[1748278788729,14.59600362,109340.0,109330.0,2.61333292]
[1748278789155,14.59400362,109340.0,109330.0,2.61333292]
[1748278789356,14.57180969,109340.0,109330.0,2.59878638]
[1748278789513,14.57180969,109340.0,109330.0,2.59978638]
[1748278789879,14.49890969,109340.0,109330.0,2.59978638]
[1748278790091,14.00760304,109340.0,109330.0,2.59978638]
[1748278790293,13.96190124,109340.0,109330.0,2.59978638]
[1748278791343,13.91622029,109340.0,109330.0,2.52727335]
[1748278791744,13.91622029,109340.0,109330.0,2.54081736]
[1748278791745,13.87053934,109340.0,109330.0,2.54081736]
[1748278791941,13.82485839,109340.0,109330.0,2.54081736]
[1748278792090,13.82585839,109340.0,109330.0,2.54381736]
[1748278792303,13.78017744,109340.0,109330.0,2.54281736]
[1748278792618,13.73449649,109340.0,109330.0,2.54481736]
[1748278792840,13.68881554,109340.0,109330.0,2.54481736]
[1748278793037,13.24321069,109340.0,109330.0,2.54481736]
[1748278793220,13.19752974,109340.0,109330.0,2.54481736]
[1748278793424,13.15184879,109340.0,109330.0,2.54481736]
[1748278793827,13.10616784,109340.0,109330.0,2.54481736]
[1748278794043,13.06132414,109340.0,109330.0,2.54481736]
[1748278794233,13.01564319,109340.0,109330.0,2.54481736]
[1748278794448,12.97889319,109340.0,109330.0,2.54481736]
[1748278794651,12.93321224,109340.0,109330.0,2.54481736]
[1748278794851,12.91211224,109340.0,109330.0,2.54481736]
[1748278795248,12.86643129,109340.0,109330.0,2.54481736]
[1748278795569,12.82075034,109340.0,109330.0,2.54481736]
[1748278795890,12.77506939,109340.0,109330.0,2.54481736]
[1748278796087,12.32156454,109340.0,109330.0,1.99793982]
[1748278796470,12.27588359,109340.0,109330.0,1.61986581]
[1748278796655,12.27588359,109340.0,109330.0,1.92846581]
[1748278797068,12.23020264,109340.0,109330.0,1.92846581]
[1748278797604,12.18155839,109340.0,109330.0,1.92846581]
[1748278797807,12.1767184,109340.0,109330.0,1.92846581]
[1748278798165,12.1319484,109340.0,109330.0,1.93891591]
[1748278798690,12.1319484,109340.0,109330.0,1.63031591]
[1748278798893,12.1319484,109340.0,109330.0,1.93891591]
[1748278799293,12.1319484,109340.0,109330.0,1.61577506]
[1748278799540,12.1319484,109340.0,109330.0,1.92437506]
[1748278799753,12.1319484,109340.0,109330.0,1.93891591]
[1748278799892,12.1319484,109340.0,109330.0,1.94981379]
[1748278800092,12.1319484,109340.0,109330.0,1.93527294]
[1748278800291,12.15938448,109340.0,109330.0,1.20398063]
[1748278800493,12.15023887,109340.0,109330.0,1.52867294]
[1748278800720,12.34230015,109340.0,109330.0,0.66624937]
[1748278800921,12.40570082,109340.0,109330.0,0.65710309]
[1748278801122,12.40570082,109340.0,109330.0,0.82163556]
[1748278801327,12.40570082,109340.0,109330.0,1.16163556]
[1748278801730,12.40470082,109340.0,109330.0,1.14773768]
[1748278802143,12.40470082,109340.0,109330.0,1.14573768]
[1748278802358,12.40670082,109340.0,109330.0,1.14573768]
[1748278803158,12.40670082,109340.0,109330.0,0.98120521]
[1748278803416,12.40670082,109340.0,109330.0,1.15488388]
[1748278803596,12.40670082,109340.0,109330.0,0.98120521]
[1748278803799,12.39755546,109340.0,109330.0,0.92907404]
[1748278804430,12.39755546,109340.0,109330.0,0.49571255]
[1748278804655,12.39755546,109340.0,109330.0,0.80659739]
[1748278806008,12.39755546,109340.0,109330.0,0.66035739]
[1748278806206,12.39755546,109340.0,109330.0,0.80659739]
[1748278806421,12.39755546,109340.0,109330.0,0.66950367]
[1748278806624,12.93528739,109340.0,109330.0,0.5333825]
[1748278806826,12.93528739,109340.0,109330.0,0.68876903]
[1748278807047,12.38840985,109340.0,109330.0,0.68876903]
[1748278807452,12.38840985,109340.0,109330.0,1.60423003]
[1748278807666,12.1603839,109340.0,109330.0,1.7120679]
[1748278807867,12.16952935,109340.0,109330.0,1.7120679]
[1748278808079,12.16952935,109340.0,109330.0,1.6600209]
[1748278808279,12.17867496,109340.0,109330.0,1.6600209]
[1748278809054,12.20977496,109340.0,109330.0,1.1749659]
[1748278809477,12.95237845,109340.0,109330.0,0.91154903]
[1748278809684,12.40550091,109340.0,109330.0,0.93159327]
[1748278809893,12.39635538,109340.0,109330.0,0.80101538]
[1748278810104,12.39635538,109340.0,109330.0,0.81930853]
[1748278810306,12.39635538,109340.0,109330.0,0.82845498]
[1748278810971,12.39635538,109340.0,109330.0,0.8175571]
[1748278811172,12.94323292,109340.0,109330.0,0.8175571]
[1748278811325,12.94323292,109340.0,109330.0,0.4609451]
[1748278811526,12.94323292,109340.0,109330.0,0.4966901]
[1748278811809,13.0097566,109340.0,109330.0,0.4966901]
[1748278812050,12.94323292,109340.0,109330.0,0.4966901]
[1748278812936,13.08947292,109340.0,109330.0,0.3504501]
[1748278813093,13.08747292,109340.0,109330.0,0.3504501]
[1748278813502,13.08947292,109340.0,109330.0,0.3504501]
[1748278813982,13.08847292,109340.0,109330.0,0.3504501]
[1748278814255,13.09047292,109340.0,109330.0,0.3504501]
[1748278814671,13.08947292,109340.0,109330.0,0.3504501]
[1748278815095,13.09147292,109340.0,109330.0,0.3504501]
[1748278816727,13.09147292,109340.0,109330.0,0.0104501]
[1748278817674,0.25507885,109330.0,109320.0,0.34]
[1748278817886,0.25507885,109330.0,109320.0,0.58566856]
[1748278818091,0.25507885,109330.0,109320.0,0.496123]
[1748278818312,0.22279642,109320.0,109310.0,0.01089788]
[1748278818521,0.23194362,109320.0,109310.0,0.48186864]
[1748278818728,0.23194362,109320.0,109310.0,0.47272052]
[1748278818927,0.23194362,109320.0,109310.0,0.81272052]
[1748278819130,0.23194362,109320.0,109310.0,0.82186856]
[1748278819363,0.23194362,109320.0,109310.0,0.83039672]
[1748278819567,0.23194362,109320.0,109310.0,0.83139672]
[1748278819763,0.23194362,109320.0,109310.0,0.84054467]
[1748278819968,0.20124362,109320.0,109310.0,0.84054467]
[1748278820398,0.20124362,109320.0,109310.0,0.82964679]
[1748278820563,0.20124362,109320.0,109310.0,0.83164679]
[1748278823253,0.20124362,109320.0,109310.0,0.84079466]
[1748278823480,0.20124362,109320.0,109310.0,0.8133508]
[1748278823690,0.23374362,109320.0,109310.0,0.8133508]
[1748278823873,0.23374362,109320.0,109310.0,0.82249892]
[1748278824667,0.23374362,109320.0,109310.0,0.84079483]
[1748278824969,0.23374362,109320.0,109310.0,0.84994262]
[1748278825175,0.80187396,109320.0,109310.0,0.53229516]
[1748278825378,0.25499642,109320.0,109310.0,0.72440915]
[1748278826119,0.24584914,109320.0,109310.0,0.72440932]
[1748278826331,0.24584914,109320.0,109310.0,0.73355753]
[1748278826535,0.24584914,109320.0,109310.0,0.74270565]
[1748278826713,0.24584914,109320.0,109310.0,0.73355753]
[1748278827277,0.24584914,109320.0,109310.0,0.53229516]
[1748278827484,0.25499659,109320.0,109310.0,0.01152816]
[1748278827686,0.20124379,109320.0,109310.0,0.01152816]
[1748278827887,0.34752379,109320.0,109310.0,0.02067645]
[1748278828097,0.33837659,109320.0,109310.0,0.01152816]
[1748278828302,0.36967659,109320.0,109310.0,0.01152816]
[1748278828506,0.36967659,109320.0,109310.0,0.01052816]
[1748278828709,0.36967659,109320.0,109310.0,0.00852816]
[1748278828914,0.37067659,109320.0,109310.0,0.00852816]
[1748278829114,0.37167659,109320.0,109310.0,0.00852816]
[1748278829602,0.22539659,109320.0,109310.0,0.60394316]
[1748278829935,0.22539659,109320.0,109310.0,0.61484104]
[1748278829936,0.19409659,109320.0,109310.0,0.61484104]
[1748278833020,0.19409659,109320.0,109310.0,0.79780691]
[1748278833239,0.19409659,109320.0,109310.0,0.61484104]
[1748278833372,0.19409659,109320.0,109310.0,0.80695512]
[1748278833579,0.19409659,109320.0,109310.0,1.15610324]
[1748278833580,0.20324379,109320.0,109310.0,1.15610324]
[1748278834205,0.20324379,109320.0,109310.0,1.16525128]
[1748278834405,0.0111467,109320.0,109310.0,1.88247003]
[1748278834608,0.02029365,109320.0,109310.0,1.88247003]
[1748278834991,0.03858788,109320.0,109310.0,1.87394187]
[1748278835242,0.02944068,109320.0,109310.0,1.64778107]
[1748278835444,0.03858847,109320.0,109310.0,1.58528107]
[1748278835779,0.26198506,109320.0,109310.0,1.18832966]
[1748278835968,0.03858838,109320.0,109310.0,1.18832966]
[1748278836166,0.04773575,109320.0,109310.0,1.18832966]
[1748278836934,0.04773575,109320.0,109310.0,1.04204966]
[1748278837148,0.04773575,109320.0,109310.0,1.17378565]
[1748278837532,0.03858838,109320.0,109310.0,1.17378565]
[1748278838242,0.22153752,109320.0,109310.0,0.79879976]
[1748278838415,0.26694354,109320.0,109310.0,0.53246556]
[1748278838883,0.26694354,109320.0,109310.0,0.44292]
[1748278839090,0.25581399,109310.0,109300.0,0.01464401]
[1748278839291,0.87810668,109320.0,109310.0,0.0109448]
[1748278839292,0.18494914,109320.0,109310.0,0.0109448]
[1748278839470,0.18494914,109320.0,109310.0,0.9486358]
[1748278839672,0.18494914,109320.0,109310.0,1.19060423]
[1748278839911,0.18494914,109320.0,109310.0,1.7557781]
[1748278840118,0.01014695,109320.0,109310.0,2.16702605]
[1748278840321,0.03987477,109320.0,109310.0,2.17617384]
[1748278840494,0.22282391,109320.0,109310.0,2.17617384]
[1748278840724,0.01929365,109320.0,109310.0,2.18532154]
[1748278840935,0.02844093,109320.0,109310.0,2.18532154]
[1748278841058,0.02744093,109320.0,109310.0,2.18532154]
[1748278841461,0.21953744,109320.0,109310.0,2.18532154]
[1748278841663,0.0365883,109320.0,109310.0,2.18532154]
[1748278841862,0.0375883,109320.0,109310.0,2.18532154]
[1748278842146,0.0385883,109320.0,109310.0,2.17437674]
[1748278842309,0.22153744,109320.0,109310.0,2.17437674]
[1748278842673,0.22153819,109320.0,109310.0,2.17437674]
[1748278842878,0.22153836,109320.0,109310.0,2.16522904]
[1748278843357,0.02944177,109320.0,109310.0,2.17437674]
[1748278844786,0.0202939,109320.0,109310.0,2.17437674]
[1748278844940,0.0202939,109320.0,109310.0,2.11227674]
[1748278845145,0.22153769,109320.0,109310.0,2.10312896]